{"text_format":"1","workbook":"xlsx","n_sheets":10,"sheets":["1","المخزن","بادى 23","نامى 21 خشن","بادى نامى  ناعم","بادى نامى خشن","بياض","ردة","دشيشة","Setting"],"not_rendered":{"charts":0,"images":0,"macros":1,"external_links":1,"defined_names":0,"comments":0,"pivot_tables":0},"unopened":[],"bounds":{"document_bytes":16777216,"sheet_cells":100000,"rows_first":2000,"rows_last":500,"rows_between":2000,"halvings":0,"cell_chars":16384,"cell_head_chars":4096},"cells_cut":0,"cells_raw":0,"read":"whole","date_system":"1900"}

{"sheet":"1","index":0,"n_rows":101,"n_cols":16,"rows_kept":101,"cut":false,"hidden":false,"merged":[]}
["مسلسل",{"$f":"SUM($B$2:$B$1000)","v":0},"الصنف","الاسم","السعر",{"$f":"SUM($F$2:$F$1000)","v":0},"التاريخ",null,null,"بادى 23","نامى 21 خشن","بادى نامى ناعم","بادى نامى خشن","بياض","ردة","دشيشة"]
[{"$f":"IF(C2=\"\",\"\",SUBTOTAL(3,$C$2:C2))","v":""},null,null,null,null,{"$f":"IFERROR(B2*E2,\"\")","v":0},{"$f":"IF(B2=\"\",\"\",TODAY())","v":""}]
[{"$f":"IF(C3=\"\",\"\",SUBTOTAL(3,$C$2:C3))","v":""},null,null,null,null,{"$f":"IFERROR(B3*E3,\"\")","v":0},""]
[{"$f":"IF(C4=\"\",\"\",SUBTOTAL(3,$C$2:C4))","v":""},null,null,null,null,0,""]
[{"$f":"IF(C5=\"\",\"\",SUBTOTAL(3,$C$2:C5))","v":""},null,null,null,null,0,""]
[{"$f":"IF(C6=\"\",\"\",SUBTOTAL(3,$C$2:C6))","v":""},null,null,null,null,0,""]
[{"$f":"IF(C7=\"\",\"\",SUBTOTAL(3,$C$2:C7))","v":""},null,null,null,null,0,""]
[{"$f":"IF(C8=\"\",\"\",SUBTOTAL(3,$C$2:C8))","v":""},null,null,null,null,0,""]
[{"$f":"IF(C9=\"\",\"\",SUBTOTAL(3,$C$2:C9))","v":""},null,null,null,null,0,""]
[{"$f":"IF(C10=\"\",\"\",SUBTOTAL(3,$C$2:C10))","v":""},null,null,null,null,0,""]
[{"$f":"IF(C11=\"\",\"\",SUBTOTAL(3,$C$2:C11))","v":""},null,null,null,null,0,""]
[{"$f":"IF(C12=\"\",\"\",SUBTOTAL(3,$C$2:C12))","v":""},null,null,null,null,0,""]
[{"$f":"IF(C13=\"\",\"\",SUBTOTAL(3,$C$2:C13))","v":""},null,null,null,null,0,""]
[{"$f":"IF(C14=\"\",\"\",SUBTOTAL(3,$C$2:C14))","v":""},null,null,null,null,0,""]
[{"$f":"IF(C15=\"\",\"\",SUBTOTAL(3,$C$2:C15))","v":""},null,null,null,null,0,""]
[{"$f":"IF(C16=\"\",\"\",SUBTOTAL(3,$C$2:C16))","v":""},null,null,null,null,0,""]
[{"$f":"IF(C17=\"\",\"\",SUBTOTAL(3,$C$2:C17))","v":""},null,null,null,null,0,""]
[{"$f":"IF(C18=\"\",\"\",SUBTOTAL(3,$C$2:C18))","v":""},null,null,null,null,0,""]
[{"$f":"IF(C19=\"\",\"\",SUBTOTAL(3,$C$2:C19))","v":""},null,null,null,null,0,""]
[{"$f":"IF(C20=\"\",\"\",SUBTOTAL(3,$C$2:C20))","v":""},null,null,null,null,0,""]
[{"$f":"IF(C21=\"\",\"\",SUBTOTAL(3,$C$2:C21))","v":""},null,null,null,null,0,""]
[{"$f":"IF(C22=\"\",\"\",SUBTOTAL(3,$C$2:C22))","v":""},null,null,null,null,0,""]
[{"$f":"IF(C23=\"\",\"\",SUBTOTAL(3,$C$2:C23))","v":""},null,null,null,null,0,""]
[{"$f":"IF(C24=\"\",\"\",SUBTOTAL(3,$C$2:C24))","v":""},null,null,null,null,0,""]
[{"$f":"IF(C25=\"\",\"\",SUBTOTAL(3,$C$2:C25))","v":""},null,null,null,null,0,""]
[{"$f":"IF(C26=\"\",\"\",SUBTOTAL(3,$C$2:C26))","v":""},null,null,null,null,0,""]
[{"$f":"IF(C27=\"\",\"\",SUBTOTAL(3,$C$2:C27))","v":""},null,null,null,null,0,""]
[{"$f":"IF(C28=\"\",\"\",SUBTOTAL(3,$C$2:C28))","v":""},null,null,null,null,0,""]
[{"$f":"IF(C29=\"\",\"\",SUBTOTAL(3,$C$2:C29))","v":""},null,null,null,null,0,""]
[{"$f":"IF(C30=\"\",\"\",SUBTOTAL(3,$C$2:C30))","v":""},null,null,null,null,0,""]
[{"$f":"IF(C31=\"\",\"\",SUBTOTAL(3,$C$2:C31))","v":""},null,null,null,null,0,""]
[{"$f":"IF(C32=\"\",\"\",SUBTOTAL(3,$C$2:C32))","v":""},null,null,null,null,0,""]
[{"$f":"IF(C33=\"\",\"\",SUBTOTAL(3,$C$2:C33))","v":""},null,null,null,null,0,""]
[{"$f":"IF(C34=\"\",\"\",SUBTOTAL(3,$C$2:C34))","v":""},null,null,null,null,0,""]
[{"$f":"IF(C35=\"\",\"\",SUBTOTAL(3,$C$2:C35))","v":""},null,null,null,null,0,""]
[{"$f":"IF(C36=\"\",\"\",SUBTOTAL(3,$C$2:C36))","v":""},null,null,null,null,0,""]
[{"$f":"IF(C37=\"\",\"\",SUBTOTAL(3,$C$2:C37))","v":""},null,null,null,null,0,""]
[{"$f":"IF(C38=\"\",\"\",SUBTOTAL(3,$C$2:C38))","v":""},null,null,null,null,0,""]
[{"$f":"IF(C39=\"\",\"\",SUBTOTAL(3,$C$2:C39))","v":""},null,null,null,null,0,""]
[{"$f":"IF(C40=\"\",\"\",SUBTOTAL(3,$C$2:C40))","v":""},null,null,null,null,0,""]
[{"$f":"IF(C41=\"\",\"\",SUBTOTAL(3,$C$2:C41))","v":""},null,null,null,null,0,""]
[{"$f":"IF(C42=\"\",\"\",SUBTOTAL(3,$C$2:C42))","v":""},null,null,null,null,0,""]
[{"$f":"IF(C43=\"\",\"\",SUBTOTAL(3,$C$2:C43))","v":""},null,null,null,null,0,""]
[{"$f":"IF(C44=\"\",\"\",SUBTOTAL(3,$C$2:C44))","v":""},null,null,null,null,0,""]
[{"$f":"IF(C45=\"\",\"\",SUBTOTAL(3,$C$2:C45))","v":""},null,null,null,null,0,""]
[{"$f":"IF(C46=\"\",\"\",SUBTOTAL(3,$C$2:C46))","v":""},null,null,null,null,0,""]
[{"$f":"IF(C47=\"\",\"\",SUBTOTAL(3,$C$2:C47))","v":""},null,null,null,null,0,""]
[{"$f":"IF(C48=\"\",\"\",SUBTOTAL(3,$C$2:C48))","v":""},null,null,null,null,0,""]
[{"$f":"IF(C49=\"\",\"\",SUBTOTAL(3,$C$2:C49))","v":""},null,null,null,null,0,""]
[{"$f":"IF(C50=\"\",\"\",SUBTOTAL(3,$C$2:C50))","v":""},null,null,null,null,0,""]
[{"$f":"IF(C51=\"\",\"\",SUBTOTAL(3,$C$2:C51))","v":""},null,null,null,null,0,""]
[{"$f":"IF(C52=\"\",\"\",SUBTOTAL(3,$C$2:C52))","v":""},null,null,null,null,0,""]
[{"$f":"IF(C53=\"\",\"\",SUBTOTAL(3,$C$2:C53))","v":""},null,null,null,null,0,""]
[{"$f":"IF(C54=\"\",\"\",SUBTOTAL(3,$C$2:C54))","v":""},null,null,null,null,0,""]
[{"$f":"IF(C55=\"\",\"\",SUBTOTAL(3,$C$2:C55))","v":""},null,null,null,null,0,""]
[{"$f":"IF(C56=\"\",\"\",SUBTOTAL(3,$C$2:C56))","v":""},null,null,null,null,0,""]
[{"$f":"IF(C57=\"\",\"\",SUBTOTAL(3,$C$2:C57))","v":""},null,null,null,null,0,""]
[{"$f":"IF(C58=\"\",\"\",SUBTOTAL(3,$C$2:C58))","v":""},null,null,null,null,0,""]
[{"$f":"IF(C59=\"\",\"\",SUBTOTAL(3,$C$2:C59))","v":""},null,null,null,null,0,""]
[{"$f":"IF(C60=\"\",\"\",SUBTOTAL(3,$C$2:C60))","v":""},null,null,null,null,0,""]
[{"$f":"IF(C61=\"\",\"\",SUBTOTAL(3,$C$2:C61))","v":""},null,null,null,null,0,""]
[{"$f":"IF(C62=\"\",\"\",SUBTOTAL(3,$C$2:C62))","v":""},null,null,null,null,0,""]
[{"$f":"IF(C63=\"\",\"\",SUBTOTAL(3,$C$2:C63))","v":""},null,null,null,null,0,""]
[{"$f":"IF(C64=\"\",\"\",SUBTOTAL(3,$C$2:C64))","v":""},null,null,null,null,0,""]
[{"$f":"IF(C65=\"\",\"\",SUBTOTAL(3,$C$2:C65))","v":""},null,null,null,null,0,""]
[{"$f":"IF(C66=\"\",\"\",SUBTOTAL(3,$C$2:C66))","v":""},null,null,null,null,0,{"$f":"IF(B66=\"\",\"\",TODAY())","v":""}]
[{"$f":"IF(C67=\"\",\"\",SUBTOTAL(3,$C$2:C67))","v":""},null,null,null,null,{"$f":"IFERROR(B67*E67,\"\")","v":0},""]
[{"$f":"IF(C68=\"\",\"\",SUBTOTAL(3,$C$2:C68))","v":""},null,null,null,null,0,""]
[{"$f":"IF(C69=\"\",\"\",SUBTOTAL(3,$C$2:C69))","v":""},null,null,null,null,0,""]
[{"$f":"IF(C70=\"\",\"\",SUBTOTAL(3,$C$2:C70))","v":""},null,null,null,null,0,""]
[{"$f":"IF(C71=\"\",\"\",SUBTOTAL(3,$C$2:C71))","v":""},null,null,null,null,0,""]
[{"$f":"IF(C72=\"\",\"\",SUBTOTAL(3,$C$2:C72))","v":""},null,null,null,null,0,""]
[{"$f":"IF(C73=\"\",\"\",SUBTOTAL(3,$C$2:C73))","v":""},null,null,null,null,0,""]
[{"$f":"IF(C74=\"\",\"\",SUBTOTAL(3,$C$2:C74))","v":""},null,null,null,null,0,""]
[{"$f":"IF(C75=\"\",\"\",SUBTOTAL(3,$C$2:C75))","v":""},null,null,null,null,0,""]
[{"$f":"IF(C76=\"\",\"\",SUBTOTAL(3,$C$2:C76))","v":""},null,null,null,null,0,""]
[{"$f":"IF(C77=\"\",\"\",SUBTOTAL(3,$C$2:C77))","v":""},null,null,null,null,0,""]
[{"$f":"IF(C78=\"\",\"\",SUBTOTAL(3,$C$2:C78))","v":""},null,null,null,null,0,""]
[{"$f":"IF(C79=\"\",\"\",SUBTOTAL(3,$C$2:C79))","v":""},null,null,null,null,0,""]
[{"$f":"IF(C80=\"\",\"\",SUBTOTAL(3,$C$2:C80))","v":""},null,null,null,null,0,""]
[{"$f":"IF(C81=\"\",\"\",SUBTOTAL(3,$C$2:C81))","v":""},null,null,null,null,0,""]
[{"$f":"IF(C82=\"\",\"\",SUBTOTAL(3,$C$2:C82))","v":""},null,null,null,null,0,""]
[{"$f":"IF(C83=\"\",\"\",SUBTOTAL(3,$C$2:C83))","v":""},null,null,null,null,0,""]
[{"$f":"IF(C84=\"\",\"\",SUBTOTAL(3,$C$2:C84))","v":""},null,null,null,null,0,""]
[{"$f":"IF(C85=\"\",\"\",SUBTOTAL(3,$C$2:C85))","v":""},null,null,null,null,0,""]
[{"$f":"IF(C86=\"\",\"\",SUBTOTAL(3,$C$2:C86))","v":""},null,null,null,null,0,""]
[{"$f":"IF(C87=\"\",\"\",SUBTOTAL(3,$C$2:C87))","v":""},null,null,null,null,0,""]
[{"$f":"IF(C88=\"\",\"\",SUBTOTAL(3,$C$2:C88))","v":""},null,null,null,null,0,""]
[{"$f":"IF(C89=\"\",\"\",SUBTOTAL(3,$C$2:C89))","v":""},null,null,null,null,0,""]
[{"$f":"IF(C90=\"\",\"\",SUBTOTAL(3,$C$2:C90))","v":""},null,null,null,null,0,""]
[{"$f":"IF(C91=\"\",\"\",SUBTOTAL(3,$C$2:C91))","v":""},null,null,null,null,0,""]
[{"$f":"IF(C92=\"\",\"\",SUBTOTAL(3,$C$2:C92))","v":""},null,null,null,null,0,""]
[{"$f":"IF(C93=\"\",\"\",SUBTOTAL(3,$C$2:C93))","v":""},null,null,null,null,0,""]
[{"$f":"IF(C94=\"\",\"\",SUBTOTAL(3,$C$2:C94))","v":""},null,null,null,null,0,""]
[{"$f":"IF(C95=\"\",\"\",SUBTOTAL(3,$C$2:C95))","v":""},null,null,null,null,0,""]
[{"$f":"IF(C96=\"\",\"\",SUBTOTAL(3,$C$2:C96))","v":""},null,null,null,null,0,""]
[{"$f":"IF(C97=\"\",\"\",SUBTOTAL(3,$C$2:C97))","v":""},null,null,null,null,0,""]
[{"$f":"IF(C98=\"\",\"\",SUBTOTAL(3,$C$2:C98))","v":""},null,null,null,null,0,""]
[{"$f":"IF(C99=\"\",\"\",SUBTOTAL(3,$C$2:C99))","v":""},null,null,null,null,0,""]
[{"$f":"IF(C100=\"\",\"\",SUBTOTAL(3,$C$2:C100))","v":""},null,null,null,null,0,""]
[{"$f":"IF(C101=\"\",\"\",SUBTOTAL(3,$C$2:C101))","v":""},null,null,null,null,0,""]

{"sheet":"المخزن","index":1,"n_rows":272,"n_cols":10,"rows_kept":272,"cut":false,"hidden":false,"merged":[[266,9,267,9],[268,9,269,9],[270,9,271,9],[254,9,255,9],[256,9,257,9],[258,9,259,9],[260,9,261,9],[262,9,263,9],[264,9,265,9],[242,9,243,9],[244,9,245,9],[246,9,247,9],[248,9,249,9],[250,9,251,9],[252,9,253,9],[230,9,231,9],[232,9,233,9],[234,9,235,9],[236,9,237,9],[238,9,239,9],[240,9,241,9],[218,9,219,9],[220,9,221,9],[222,9,223,9],[224,9,225,9],[226,9,227,9],[228,9,229,9],[206,9,207,9],[208,9,209,9],[210,9,211,9],[212,9,213,9],[214,9,215,9],[216,9,217,9],[194,9,195,9],[196,9,197,9],[198,9,199,9],[200,9,201,9],[202,9,203,9],[204,9,205,9],[182,9,183,9],[184,9,185,9],[186,9,187,9],[188,9,189,9],[190,9,191,9],[192,9,193,9],[170,9,171,9],[172,9,173,9],[174,9,175,9],[176,9,177,9],[178,9,179,9],[180,9,181,9],[158,9,159,9],[160,9,161,9],[162,9,163,9],[164,9,165,9],[166,9,167,9],[168,9,169,9],[146,9,147,9],[148,9,149,9],[150,9,151,9],[152,9,153,9],[154,9,155,9],[156,9,157,9],[134,9,135,9],[136,9,137,9],[138,9,139,9],[140,9,141,9],[142,9,143,9],[144,9,145,9],[122,9,123,9],[124,9,125,9],[126,9,127,9],[128,9,129,9],[130,9,131,9],[132,9,133,9],[110,9,111,9],[112,9,113,9],[114,9,115,9],[116,9,117,9],[118,9,119,9],[120,9,121,9],[98,9,99,9],[100,9,101,9],[102,9,103,9],[104,9,105,9],[106,9,107,9],[108,9,109,9],[86,9,87,9],[88,9,89,9],[90,9,91,9],[92,9,93,9],[94,9,95,9],[96,9,97,9],[74,9,75,9],[76,9,77,9],[78,9,79,9],[80,9,81,9],[82,9,83,9],[84,9,85,9],[62,9,63,9],[64,9,65,9],[66,9,67,9],[68,9,69,9],[70,9,71,9],[72,9,73,9],[50,9,51,9],[52,9,53,9],[54,9,55,9],[56,9,57,9],[58,9,59,9],[60,9,61,9],[38,9,39,9],[40,9,41,9],[42,9,43,9],[44,9,45,9],[46,9,47,9],[48,9,49,9],[32,9,33,9],[34,9,35,9],[36,9,37,9],[14,9,15,9],[16,9,17,9],[18,9,19,9],[20,9,21,9],[22,9,23,9],[24,9,25,9],[2,9,3,9],[4,9,5,9],[6,9,7,9],[8,9,9,9],[10,9,11,9],[12,9,13,9],[26,9,27,9],[28,9,29,9],[30,9,31,9]]}
[null," محضر تسليم وتسلم "]
[]
[null,"الصنف",{"$f":"[1]ورقة1!B4","v":"بادى 23"},{"$f":"[1]ورقة1!C4","v":"نامى خشن"},{"$f":"[1]ورقة1!D4","v":"بادى نامى ناعم"},{"$f":"[1]ورقة1!E4","v":"بادى نامى خشن"},{"$f":"[1]ورقة1!F4","v":"بياض"},{"$f":"[1]ورقة1!G4","v":"ردة"},{"$f":"[1]ورقة1!H4","v":"دشيشة"},"التاريخ"]
[null,"الموجود بالبرنامج",{"$f":"'بادى 23'!I1","v":17.309999999999999},{"$f":"'نامى 21 خشن'!I1","v":31.169999999999987},{"$f":"'بادى نامى  ناعم'!I1","v":0},{"$f":"'بادى نامى خشن'!I1","v":10.42},{"$f":"بياض!I1","v":3},{"$f":"ردة!I1","v":0},{"$f":"دشيشة!I1","v":0.55000000000000004}]
[null,"الموجود بالمخزن صباحا",null,null,null,null,null,null,null,"2018-10-16"]
[null,"الموجود بالمخزن مساءا","15ش +4.5 ك","19ش +17 ك",0,"13ش +2.5 ك",7,"29.5 ك",0]
[null,"الموجود بالمخزن صباحا",null,"19ش +9.5 ك",0,"13ش ",7,0,null,"2018-10-17"]
[null,"الموجود بالمخزن مساءا","13ش +22.75 ك","57ش + 9.5ك",0,3,5,1,1]
[null,"الموجود بالمخزن صباحا","4ش+18ك","53ش+4",0,3,5,34.75,1,"2018-10-18"]
[null,"الموجود بالمخزن مساءا","3ش+14ك","53ش ",0,"3ش","2ش","35ك","40.5ك"]
[null,"الموجود بالمخزن صباحا","3ش ","47ش+39.75ك",0,"3ش","2ش","31.5ك","37.8ك","2018-10-20"]
[null,"الموجود بالمخزن مساءا","1ش+ 47ك","45ش",null,"3ش","2ش",0,"37.5ك"]
[null,"الموجود بالمخزن صباحا","1ش+ 47ك","42ش+40ك",null,1,"2ش",0,"32.5 ك","2018-10-21"]
[null,"الموجود بالمخزن مساءا","21 ش +44.5ك","40ش + 37.5ك",null,"1ش","2 ش",0,"32.5 ك"]
[null,"الموجود بالمخزن صباحا"]
[null,"الموجود بالمخزن مساءا",0]
[null,"الموجود بالمخزن صباحا"]
[null,"الموجود بالمخزن مساءا",0,"39ش+18",null,"10ش+ 46ك",0,0,27.5]
[null,"الموجود بالمخزن صباحا",null,"38ش +18;",null,"10ش+ 46ك",null,null,"27.5ك","2018-10-24"]
[null,"الموجود بالمخزن مساءا","18ش+42ك","35ش+9.5ك",null,"10ش+ 46ك","5ش",0,"27.5ك"]
[null,"الموجود بالمخزن صباحا","17ش+17ك","32ش+8.5ك",null,"10ش+ 46ك","5ش",null,"27.5ك"]
[null,"الموجود بالمخزن مساءا"]
[null,"الموجود بالمخزن صباحا"]
[null,"الموجود بالمخزن مساءا"]
[null,"الموجود بالمخزن صباحا"]
[null,"الموجود بالمخزن مساءا"]
[null,"الموجود بالمخزن صباحا"]
[null,"الموجود بالمخزن مساءا"]
[null,"الموجود بالمخزن صباحا"]
[null,"الموجود بالمخزن مساءا"]
[null,"الموجود بالمخزن صباحا"]
[null,"الموجود بالمخزن مساءا"]
[null,"الموجود بالمخزن صباحا"]
[null,"الموجود بالمخزن مساءا"]
[null,"الموجود بالمخزن صباحا"]
[null,"الموجود بالمخزن مساءا"]
[null,"الموجود بالمخزن صباحا"]
[null,"الموجود بالمخزن مساءا"]
[null,"الموجود بالمخزن صباحا"]
[null,"الموجود بالمخزن مساءا"]
[null,"الموجود بالمخزن صباحا"]
[null,"الموجود بالمخزن مساءا"]
[null,"الموجود بالمخزن صباحا"]
[null,"الموجود بالمخزن مساءا"]
[null,"الموجود بالمخزن صباحا"]
[null,"الموجود بالمخزن مساءا"]
[null,"الموجود بالمخزن صباحا"]
[null,"الموجود بالمخزن مساءا"]
[null,"الموجود بالمخزن صباحا"]
[null,"الموجود بالمخزن مساءا"]
[null,"الموجود بالمخزن صباحا"]
[null,"الموجود بالمخزن مساءا"]
[null,"الموجود بالمخزن صباحا"]
[null,"الموجود بالمخزن مساءا"]
[null,"الموجود بالمخزن صباحا"]
[null,"الموجود بالمخزن مساءا"]
[null,"الموجود بالمخزن صباحا"]
[null,"الموجود بالمخزن مساءا"]
[null,"الموجود بالمخزن صباحا"]
[null,"الموجود بالمخزن مساءا"]
[null,"الموجود بالمخزن صباحا"]
[null,"الموجود بالمخزن مساءا"]
[null,"الموجود بالمخزن صباحا"]
[null,"الموجود بالمخزن مساءا"]
[null,"الموجود بالمخزن صباحا"]
[null,"الموجود بالمخزن مساءا"]
[null,"الموجود بالمخزن صباحا"]
[null,"الموجود بالمخزن مساءا"]
[null,"الموجود بالمخزن صباحا"]
[null,"الموجود بالمخزن مساءا"]
[null,"الموجود بالمخزن صباحا"]
[null,"الموجود بالمخزن مساءا"]
[null,"الموجود بالمخزن صباحا"]
[null,"الموجود بالمخزن مساءا"]
[null,"الموجود بالمخزن صباحا"]
[null,"الموجود بالمخزن مساءا"]
[null,"الموجود بالمخزن صباحا"]
[null,"الموجود بالمخزن مساءا"]
[null,"الموجود بالمخزن صباحا"]
[null,"الموجود بالمخزن مساءا"]
[null,"الموجود بالمخزن صباحا"]
[null,"الموجود بالمخزن مساءا"]
[null,"الموجود بالمخزن صباحا"]
[null,"الموجود بالمخزن مساءا"]
[null,"الموجود بالمخزن صباحا"]
[null,"الموجود بالمخزن مساءا"]
[null,"الموجود بالمخزن صباحا"]
[null,"الموجود بالمخزن مساءا"]
[null,"الموجود بالمخزن صباحا"]
[null,"الموجود بالمخزن مساءا"]
[null,"الموجود بالمخزن صباحا"]
[null,"الموجود بالمخزن مساءا"]
[null,"الموجود بالمخزن صباحا"]
[null,"الموجود بالمخزن مساءا"]
[null,"الموجود بالمخزن صباحا"]
[null,"الموجود بالمخزن مساءا"]
[null,"الموجود بالمخزن صباحا"]
[null,"الموجود بالمخزن مساءا"]
[null,"الموجود بالمخزن صباحا"]
[null,"الموجود بالمخزن مساءا"]
[null,"الموجود بالمخزن صباحا"]
[null,"الموجود بالمخزن مساءا"]
[null,"الموجود بالمخزن صباحا"]
[null,"الموجود بالمخزن مساءا"]
[null,"الموجود بالمخزن صباحا"]
[null,"الموجود بالمخزن مساءا"]
[null,"الموجود بالمخزن صباحا"]
[null,"الموجود بالمخزن مساءا"]
[null,"الموجود بالمخزن صباحا"]
[null,"الموجود بالمخزن مساءا"]
[null,"الموجود بالمخزن صباحا"]
[null,"الموجود بالمخزن مساءا"]
[null,"الموجود بالمخزن صباحا"]
[null,"الموجود بالمخزن مساءا"]
[null,"الموجود بالمخزن صباحا"]
[null,"الموجود بالمخزن مساءا"]
[null,"الموجود بالمخزن صباحا"]
[null,"الموجود بالمخزن مساءا"]
[null,"الموجود بالمخزن صباحا"]
[null,"الموجود بالمخزن مساءا"]
[null,"الموجود بالمخزن صباحا"]
[null,"الموجود بالمخزن مساءا"]
[null,"الموجود بالمخزن صباحا"]
[null,"الموجود بالمخزن مساءا"]
[null,"الموجود بالمخزن صباحا"]
[null,"الموجود بالمخزن مساءا"]
[null,"الموجود بالمخزن صباحا"]
[null,"الموجود بالمخزن مساءا"]
[null,"الموجود بالمخزن صباحا"]
[null,"الموجود بالمخزن مساءا"]
[null,"الموجود بالمخزن صباحا"]
[null,"الموجود بالمخزن مساءا"]
[null,"الموجود بالمخزن صباحا"]
[null,"الموجود بالمخزن مساءا"]
[null,"الموجود بالمخزن صباحا"]
[null,"الموجود بالمخزن مساءا"]
[null,"الموجود بالمخزن صباحا"]
[null,"الموجود بالمخزن مساءا"]
[null,"الموجود بالمخزن صباحا"]
[null,"الموجود بالمخزن مساءا"]
[null,"الموجود بالمخزن صباحا"]
[null,"الموجود بالمخزن مساءا"]
[null,"الموجود بالمخزن صباحا"]
[null,"الموجود بالمخزن مساءا"]
[null,"الموجود بالمخزن صباحا"]
[null,"الموجود بالمخزن مساءا"]
[null,"الموجود بالمخزن صباحا"]
[null,"الموجود بالمخزن مساءا"]
[null,"الموجود بالمخزن صباحا"]
[null,"الموجود بالمخزن مساءا"]
[null,"الموجود بالمخزن صباحا"]
[null,"الموجود بالمخزن مساءا"]
[null,"الموجود بالمخزن صباحا"]
[null,"الموجود بالمخزن مساءا"]
[null,"الموجود بالمخزن صباحا"]
[null,"الموجود بالمخزن مساءا"]
[null,"الموجود بالمخزن صباحا"]
[null,"الموجود بالمخزن مساءا"]
[null,"الموجود بالمخزن صباحا"]
[null,"الموجود بالمخزن مساءا"]
[null,"الموجود بالمخزن صباحا"]
[null,"الموجود بالمخزن مساءا"]
[null,"الموجود بالمخزن صباحا"]
[null,"الموجود بالمخزن مساءا"]
[null,"الموجود بالمخزن صباحا"]
[null,"الموجود بالمخزن مساءا"]
[null,"الموجود بالمخزن صباحا"]
[null,"الموجود بالمخزن مساءا"]
[null,"الموجود بالمخزن صباحا"]
[null,"الموجود بالمخزن مساءا"]
[null,"الموجود بالمخزن صباحا"]
[null,"الموجود بالمخزن مساءا"]
[null,"الموجود بالمخزن صباحا"]
[null,"الموجود بالمخزن مساءا"]
[null,"الموجود بالمخزن صباحا"]
[null,"الموجود بالمخزن مساءا"]
[null,"الموجود بالمخزن صباحا"]
[null,"الموجود بالمخزن مساءا"]
[null,"الموجود بالمخزن صباحا"]
[null,"الموجود بالمخزن مساءا"]
[null,"الموجود بالمخزن صباحا"]
[null,"الموجود بالمخزن مساءا"]
[null,"الموجود بالمخزن صباحا"]
[null,"الموجود بالمخزن مساءا"]
[null,"الموجود بالمخزن صباحا"]
[null,"الموجود بالمخزن مساءا"]
[null,"الموجود بالمخزن صباحا"]
[null,"الموجود بالمخزن مساءا"]
[null,"الموجود بالمخزن صباحا"]
[null,"الموجود بالمخزن مساءا"]
[null,"الموجود بالمخزن صباحا"]
[null,"الموجود بالمخزن مساءا"]
[null,"الموجود بالمخزن صباحا"]
[null,"الموجود بالمخزن مساءا"]
[null,"الموجود بالمخزن صباحا"]
[null,"الموجود بالمخزن مساءا"]
[null,"الموجود بالمخزن صباحا"]
[null,"الموجود بالمخزن مساءا"]
[null,"الموجود بالمخزن صباحا"]
[null,"الموجود بالمخزن مساءا"]
[null,"الموجود بالمخزن صباحا"]
[null,"الموجود بالمخزن مساءا"]
[null,"الموجود بالمخزن صباحا"]
[null,"الموجود بالمخزن مساءا"]
[null,"الموجود بالمخزن صباحا"]
[null,"الموجود بالمخزن مساءا"]
[null,"الموجود بالمخزن صباحا"]
[null,"الموجود بالمخزن مساءا"]
[null,"الموجود بالمخزن صباحا"]
[null,"الموجود بالمخزن مساءا"]
[null,"الموجود بالمخزن صباحا"]
[null,"الموجود بالمخزن مساءا"]
[null,"الموجود بالمخزن صباحا"]
[null,"الموجود بالمخزن مساءا"]
[null,"الموجود بالمخزن صباحا"]
[null,"الموجود بالمخزن مساءا"]
[null,"الموجود بالمخزن صباحا"]
[null,"الموجود بالمخزن مساءا"]
[null,"الموجود بالمخزن صباحا"]
[null,"الموجود بالمخزن مساءا"]
[null,"الموجود بالمخزن صباحا"]
[null,"الموجود بالمخزن مساءا"]
[null,"الموجود بالمخزن صباحا"]
[null,"الموجود بالمخزن مساءا"]
[null,"الموجود بالمخزن صباحا"]
[null,"الموجود بالمخزن مساءا"]
[null,"الموجود بالمخزن صباحا"]
[null,"الموجود بالمخزن مساءا"]
[null,"الموجود بالمخزن صباحا"]
[null,"الموجود بالمخزن مساءا"]
[null,"الموجود بالمخزن صباحا"]
[null,"الموجود بالمخزن مساءا"]
[null,"الموجود بالمخزن صباحا"]
[null,"الموجود بالمخزن مساءا"]
[null,"الموجود بالمخزن صباحا"]
[null,"الموجود بالمخزن مساءا"]
[null,"الموجود بالمخزن صباحا"]
[null,"الموجود بالمخزن مساءا"]
[null,"الموجود بالمخزن صباحا"]
[null,"الموجود بالمخزن مساءا"]
[null,"الموجود بالمخزن صباحا"]
[null,"الموجود بالمخزن مساءا"]
[null,"الموجود بالمخزن صباحا"]
[null,"الموجود بالمخزن مساءا"]
[null,"الموجود بالمخزن صباحا"]
[null,"الموجود بالمخزن مساءا"]
[null,"الموجود بالمخزن صباحا"]
[null,"الموجود بالمخزن مساءا"]
[null,"الموجود بالمخزن صباحا"]
[null,"الموجود بالمخزن مساءا"]
[null,"الموجود بالمخزن صباحا"]
[null,"الموجود بالمخزن مساءا"]
[null,"الموجود بالمخزن صباحا"]
[null,"الموجود بالمخزن مساءا"]
[null,"الموجود بالمخزن صباحا"]
[null,"الموجود بالمخزن مساءا"]
[null,"الموجود بالمخزن صباحا"]
[null,"الموجود بالمخزن مساءا"]
[null,"الموجود بالمخزن صباحا"]
[null,"الموجود بالمخزن مساءا"]
[null,"الموجود بالمخزن صباحا"]
[null,"الموجود بالمخزن مساءا"]
[null,"الموجود بالمخزن صباحا"]
[null,"الموجود بالمخزن مساءا"]
[null,"الموجود بالمخزن صباحا"]
[null,"الموجود بالمخزن مساءا"]
[null,"الموجود بالمخزن صباحا"]
[null,"الموجود بالمخزن مساءا"]
[null,"الموجود بالمخزن صباحا"]
[null,"الموجود بالمخزن مساءا"]
[null,"الموجود بالمخزن صباحا"]
[null,"الموجود بالمخزن مساءا"]

{"sheet":"بادى 23","index":2,"n_rows":65,"n_cols":11,"rows_kept":65,"cut":false,"hidden":false,"merged":[]}
["مسلسل",{"$f":"SUM($B$2:$B$986)","v":134.5},"الصنف","الاسم","السعر",{"$f":"SUM($F$2:$F$986)","v":361},"تاريخ البيع",{"$f":"SUM($H$2:$H$986)","v":2.69},{"$f":"SUM($I$2:$I$986)","v":17.309999999999999},{"$f":"SUM($J$2:$J$986)","v":20},"التاريخ"]
[2,50,"بادى 23","الشيخ عمر",6.8,340,"2018-10-24",{"$f":"B2/50","v":1},{"$f":"J2-H2","v":19},20,{"$f":"IF($J2=\"\",\"\",IF(K2=\"\",TODAY(),K2))","v":""}]
[3,3,"بادى 23","زبون",7,21,"2018-10-24",0.06,-0.06,null,""]
[1,5,"بادى 23","زبون",null,0,"2018-10-24",0.1,-0.1,null,""]
[1,50,"بادى 23","الشيخ عمر",null,0,"2018-10-25",1,-1,null,""]
[3,25,"بادى 23","زبون",null,0,"2018-10-25",0.5,-0.5,null,""]
[6,1.5,"بادى 23","زبون",null,0,"2018-10-25",0.03,-0.03,null,""]
[null,null,null,null,null,null,null,0,0,null,""]
[null,null,null,null,null,null,null,0,0,null,""]
[null,null,null,null,null,null,null,0,0,null,""]
[null,null,null,null,null,null,null,0,0,null,""]
[null,null,null,null,null,null,null,0,0,null,""]
[null,null,null,null,null,null,null,0,0,null,""]
[null,null,null,null,null,null,null,0,0,null,""]
[null,null,null,null,null,null,null,0,null,null,""]
[null,null,null,null,null,null,null,0,null,null,""]
[null,null,null,null,null,null,null,0,null,null,""]
[null,null,null,null,null,null,null,0,null,null,""]
[null,null,null,null,null,null,null,0,null,null,""]
[null,null,null,null,null,null,null,0,null,null,""]
[null,null,null,null,null,null,null,0,null,null,""]
[null,null,null,null,null,null,null,0,null,null,""]
[null,null,null,null,null,null,null,0,null,null,""]
[null,null,null,null,null,null,null,0,null,null,""]
[null,null,null,null,null,null,null,0,null,null,""]
[null,null,null,null,null,null,null,0,null,null,""]
[null,null,null,null,null,null,null,0,null,null,""]
[null,null,null,null,null,null,null,0,null,null,""]
[null,null,null,null,null,null,null,0,null,null,""]
[null,null,null,null,null,null,null,0,null,null,""]
[null,null,null,null,null,null,null,0,null,null,""]
[null,null,null,null,null,null,null,0,null,null,""]
[null,null,null,null,null,null,null,0,null,null,""]
[null,null,null,null,null,null,null,null,null,null,{"$f":"IF($J34=\"\",\"\",IF(K34=\"\",TODAY(),K34))","v":""}]
[null,null,null,null,null,null,null,null,null,null,""]
[null,null,null,null,null,null,null,null,null,null,""]
[null,null,null,null,null,null,null,null,null,null,""]
[null,null,null,null,null,null,null,null,null,null,""]
[null,null,null,null,null,null,null,null,null,null,""]
[null,null,null,null,null,null,null,null,null,null,""]
[null,null,null,null,null,null,null,null,null,null,""]
[null,null,null,null,null,null,null,null,null,null,""]
[null,null,null,null,null,null,null,null,null,null,""]
[null,null,null,null,null,null,null,null,null,null,""]
[null,null,null,null,null,null,null,null,null,null,""]
[null,null,null,null,null,null,null,null,null,null,""]
[null,null,null,null,null,null,null,null,null,null,""]
[null,null,null,null,null,null,null,null,null,null,""]
[null,null,null,null,null,null,null,null,null,null,""]
[null,null,null,null,null,null,null,null,null,null,""]
[null,null,null,null,null,null,null,null,null,null,""]
[null,null,null,null,null,null,null,null,null,null,""]
[null,null,null,null,null,null,null,null,null,null,""]
[null,null,null,null,null,null,null,null,null,null,""]
[null,null,null,null,null,null,null,null,null,null,""]
[null,null,null,null,null,null,null,null,null,null,""]
[null,null,null,null,null,null,null,null,null,null,""]
[null,null,null,null,null,null,null,null,null,null,""]
[null,null,null,null,null,null,null,null,null,null,""]
[null,null,null,null,null,null,null,null,null,null,""]
[null,null,null,null,null,null,null,null,null,null,""]
[null,null,null,null,null,null,null,null,null,null,""]
[null,null,null,null,null,null,null,null,null,null,""]
[null,null,null,null,null,null,null,null,null,null,""]
[null,null,null,null,null,null,null,null,null,null,""]

{"sheet":"نامى 21 خشن","index":3,"n_rows":65,"n_cols":11,"rows_kept":65,"cut":false,"hidden":false,"merged":[]}
["مسلسل",{"$f":"SUM($B$2:$B$986)","v":409.5},"الصنف","الاسم","السعر",{"$f":"SUM($F$2:$F$986)","v":1767.5},"تاريخ البيع",{"$f":"SUM($H$2:$H$986)","v":8.19},{"$f":"SUM($I$2:$I$986)","v":31.169999999999987},{"$f":"SUM($J$2:$J$986)","v":39.36},"التاريخ"]
[1,100,"نامى 21 خشن","الشيخ عمر",6.7,670,"2018-10-24",{"$f":"B2/50","v":2},{"$f":"J2-H2","v":37.36},39.36,"2018-10-24"]
[2,1,"نامى 21 خشن","زبون",5,5,"2018-10-24",0.02,-0.02,null,{"$f":"IF($J3=\"\",\"\",IF(K3=\"\",TODAY(),K3))","v":""}]
[1,3,"نامى 21 خشن","زبون",7,21,"2018-10-24",0.06,-0.06,null,""]
[1,100,"نامى 21 خشن","سعيد العقيلى",7,700,"2018-10-24",2,-2,null,""]
[1,4.5,"نامى 21 خشن","فتحية",7,31.5,"2018-10-24",0.09,-0.09,null,""]
[2,50,"نامى 21 خشن","الشيخ عمر",null,0,"2018-10-25",1,-1,null,""]
[4,50,"نامى 21 خشن","حسين",null,0,"2018-10-25",1,-1,null,""]
[5,50,"نامى 21 خشن","لمياء",null,0,"2018-10-25",1,-1,null,""]
[1,1,"نامى 21 خشن","زبون",null,0,"2018-10-25",0.02,-0.02,null,""]
[1,50,"نامى 21 خشن","ام حمادة كوتش",6.8,340,"2018-10-25",1,-1,null,""]
[null,null,null,null,null,null,null,0,0,null,""]
[null,null,null,null,null,null,null,0,0,null,""]
[null,null,null,null,null,null,null,0,0,null,""]
[null,null,null,null,null,null,null,0,null,null,""]
[null,null,null,null,null,null,null,0,null,null,""]
[null,null,null,null,null,null,null,0,null,null,""]
[null,null,null,null,null,null,null,0,null,null,""]
[null,null,null,null,null,null,null,0,null,null,""]
[null,null,null,null,null,null,null,0,null,null,""]
[null,null,null,null,null,null,null,0,null,null,""]
[null,null,null,null,null,null,null,0,null,null,""]
[null,null,null,null,null,null,null,0,null,null,""]
[null,null,null,null,null,null,null,0,null,null,""]
[null,null,null,null,null,null,null,0,null,null,""]
[null,null,null,null,null,null,null,0,null,null,""]
[null,null,null,null,null,null,null,0,null,null,""]
[null,null,null,null,null,null,null,0,null,null,""]
[null,null,null,null,null,null,null,0,null,null,""]
[null,null,null,null,null,null,null,0,null,null,""]
[null,null,null,null,null,null,null,0,null,null,""]
[null,null,null,null,null,null,null,0,null,null,""]
[null,null,null,null,null,null,null,0,null,null,""]
[null,null,null,null,null,null,null,null,null,null,{"$f":"IF($J34=\"\",\"\",IF(K34=\"\",TODAY(),K34))","v":""}]
[null,null,null,null,null,null,null,null,null,null,""]
[null,null,null,null,null,null,null,null,null,null,""]
[null,null,null,null,null,null,null,null,null,null,""]
[null,null,null,null,null,null,null,null,null,null,""]
[null,null,null,null,null,null,null,null,null,null,""]
[null,null,null,null,null,null,null,null,null,null,""]
[null,null,null,null,null,null,null,null,null,null,""]
[null,null,null,null,null,null,null,null,null,null,""]
[null,null,null,null,null,null,null,null,null,null,""]
[null,null,null,null,null,null,null,null,null,null,""]
[null,null,null,null,null,null,null,null,null,null,""]
[null,null,null,null,null,null,null,null,null,null,""]
[null,null,null,null,null,null,null,null,null,null,""]
[null,null,null,null,null,null,null,null,null,null,""]
[null,null,null,null,null,null,null,null,null,null,""]
[null,null,null,null,null,null,null,null,null,null,""]
[null,null,null,null,null,null,null,null,null,null,""]
[null,null,null,null,null,null,null,null,null,null,""]
[null,null,null,null,null,null,null,null,null,null,""]
[null,null,null,null,null,null,null,null,null,null,""]
[null,null,null,null,null,null,null,null,null,null,""]
[null,null,null,null,null,null,null,null,null,null,""]
[null,null,null,null,null,null,null,null,null,null,""]
[null,null,null,null,null,null,null,null,null,null,""]
[null,null,null,null,null,null,null,null,null,null,""]
[null,null,null,null,null,null,null,null,null,null,""]
[null,null,null,null,null,null,null,null,null,null,""]
[null,null,null,null,null,null,null,null,null,null,""]
[null,null,null,null,null,null,null,null,null,null,""]
[null,null,null,null,null,null,null,null,null,null,""]
[null,null,null,null,null,null,null,null,null,null,""]

{"sheet":"بادى نامى  ناعم","index":4,"n_rows":65,"n_cols":11,"rows_kept":65,"cut":false,"hidden":false,"merged":[]}
["مسلسل",{"$f":"SUM($B$2:$B$986)","v":0},"الصنف","الاسم","السعر",{"$f":"SUM($F$2:$F$986)","v":0},"تاريخ البيع",{"$f":"SUM($H$2:$H$986)","v":0},{"$f":"SUM($I$2:$I$986)","v":0},{"$f":"SUM($J$2:$J$986)","v":0},"التاريخ"]
[null,null,null,null,null,null,null,{"$f":"B2/50","v":0},{"$f":"J2-H2","v":0},null,{"$f":"IF($J2=\"\",\"\",IF(K2=\"\",TODAY(),K2))","v":""}]
[null,null,null,null,null,null,null,0,0,null,""]
[null,null,null,null,null,null,null,0,0,null,""]
[null,null,null,null,null,null,null,0,0,null,""]
[null,null,null,null,null,null,null,0,0,null,""]
[null,null,null,null,null,null,null,0,0,null,""]
[null,null,null,null,null,null,null,0,0,null,""]
[null,null,null,null,null,null,null,0,0,null,""]
[null,null,null,null,null,null,null,0,0,null,""]
[null,null,null,null,null,null,null,0,0,null,""]
[null,null,null,null,null,null,null,0,0,null,""]
[null,null,null,null,null,null,null,0,0,null,""]
[null,null,null,null,null,null,null,0,0,null,""]
[null,null,null,null,null,null,null,0,null,null,""]
[null,null,null,null,null,null,null,0,null,null,""]
[null,null,null,null,null,null,null,0,null,null,""]
[null,null,null,null,null,null,null,0,null,null,""]
[null,null,null,null,null,null,null,0,null,null,""]
[null,null,null,null,null,null,null,0,null,null,""]
[null,null,null,null,null,null,null,0,null,null,""]
[null,null,null,null,null,null,null,0,null,null,""]
[null,null,null,null,null,null,null,0,null,null,""]
[null,null,null,null,null,null,null,0,null,null,""]
[null,null,null,null,null,null,null,0,null,null,""]
[null,null,null,null,null,null,null,0,null,null,""]
[null,null,null,null,null,null,null,0,null,null,""]
[null,null,null,null,null,null,null,0,null,null,""]
[null,null,null,null,null,null,null,0,null,null,""]
[null,null,null,null,null,null,null,0,null,null,""]
[null,null,null,null,null,null,null,0,null,null,""]
[null,null,null,null,null,null,null,0,null,null,""]
[null,null,null,null,null,null,null,0,null,null,""]
[null,null,null,null,null,null,null,null,null,null,{"$f":"IF($J34=\"\",\"\",IF(K34=\"\",TODAY(),K34))","v":""}]
[null,null,null,null,null,null,null,null,null,null,""]
[null,null,null,null,null,null,null,null,null,null,""]
[null,null,null,null,null,null,null,null,null,null,""]
[null,null,null,null,null,null,null,null,null,null,""]
[null,null,null,null,null,null,null,null,null,null,""]
[null,null,null,null,null,null,null,null,null,null,""]
[null,null,null,null,null,null,null,null,null,null,""]
[null,null,null,null,null,null,null,null,null,null,""]
[null,null,null,null,null,null,null,null,null,null,""]
[null,null,null,null,null,null,null,null,null,null,""]
[null,null,null,null,null,null,null,null,null,null,""]
[null,null,null,null,null,null,null,null,null,null,""]
[null,null,null,null,null,null,null,null,null,null,""]
[null,null,null,null,null,null,null,null,null,null,""]
[null,null,null,null,null,null,null,null,null,null,""]
[null,null,null,null,null,null,null,null,null,null,""]
[null,null,null,null,null,null,null,null,null,null,""]
[null,null,null,null,null,null,null,null,null,null,""]
[null,null,null,null,null,null,null,null,null,null,""]
[null,null,null,null,null,null,null,null,null,null,""]
[null,null,null,null,null,null,null,null,null,null,""]
[null,null,null,null,null,null,null,null,null,null,""]
[null,null,null,null,null,null,null,null,null,null,""]
[null,null,null,null,null,null,null,null,null,null,""]
[null,null,null,null,null,null,null,null,null,null,""]
[null,null,null,null,null,null,null,null,null,null,""]
[null,null,null,null,null,null,null,null,null,null,""]
[null,null,null,null,null,null,null,null,null,null,""]
[null,null,null,null,null,null,null,null,null,null,""]
[null,null,null,null,null,null,null,null,null,null,""]
[null,null,null,null,null,null,null,null,null,null,""]

{"sheet":"بادى نامى خشن","index":5,"n_rows":65,"n_cols":11,"rows_kept":65,"cut":false,"hidden":false,"merged":[]}
["مسلسل",{"$f":"SUM($B$2:$B$986)","v":25},"الصنف","الاسم","السعر",{"$f":"SUM($F$2:$F$986)","v":0},"تاريخ البيع",{"$f":"SUM($H$2:$H$986)","v":0.5},{"$f":"SUM($I$2:$I$986)","v":10.42},{"$f":"SUM($J$2:$J$986)","v":10.92},"التاريخ"]
[2,25,"بادى نامى خشن","ام انس",null,0,"2018-10-25",{"$f":"B2/50","v":0.5},{"$f":"J2-H2","v":10.42},10.92,{"$f":"IF($J2=\"\",\"\",IF(K2=\"\",TODAY(),K2))","v":""}]
[null,null,null,null,null,null,null,0,0,null,""]
[null,null,null,null,null,null,null,0,0,null,""]
[null,null,null,null,null,null,null,0,0,null,""]
[null,null,null,null,null,null,null,0,0,null,""]
[null,null,null,null,null,null,null,0,0,null,""]
[null,null,null,null,null,null,null,0,0,null,""]
[null,null,null,null,null,null,null,0,0,null,""]
[null,null,null,null,null,null,null,0,0,null,""]
[null,null,null,null,null,null,null,0,0,null,""]
[null,null,null,null,null,null,null,0,0,null,""]
[null,null,null,null,null,null,null,0,0,null,""]
[null,null,null,null,null,null,null,0,0,null,""]
[null,null,null,null,null,null,null,0,null,null,""]
[null,null,null,null,null,null,null,0,null,null,""]
[null,null,null,null,null,null,null,0,null,null,""]
[null,null,null,null,null,null,null,0,null,null,""]
[null,null,null,null,null,null,null,0,null,null,""]
[null,null,null,null,null,null,null,0,null,null,""]
[null,null,null,null,null,null,null,0,null,null,""]
[null,null,null,null,null,null,null,0,null,null,""]
[null,null,null,null,null,null,null,0,null,null,""]
[null,null,null,null,null,null,null,0,null,null,""]
[null,null,null,null,null,null,null,0,null,null,""]
[null,null,null,null,null,null,null,0,null,null,""]
[null,null,null,null,null,null,null,0,null,null,""]
[null,null,null,null,null,null,null,0,null,null,""]
[null,null,null,null,null,null,null,0,null,null,""]
[null,null,null,null,null,null,null,0,null,null,""]
[null,null,null,null,null,null,null,0,null,null,""]
[null,null,null,null,null,null,null,0,null,null,""]
[null,null,null,null,null,null,null,0,null,null,""]
[null,null,null,null,null,null,null,null,null,null,{"$f":"IF($J34=\"\",\"\",IF(K34=\"\",TODAY(),K34))","v":""}]
[null,null,null,null,null,null,null,null,null,null,""]
[null,null,null,null,null,null,null,null,null,null,""]
[null,null,null,null,null,null,null,null,null,null,""]
[null,null,null,null,null,null,null,null,null,null,""]
[null,null,null,null,null,null,null,null,null,null,""]
[null,null,null,null,null,null,null,null,null,null,""]
[null,null,null,null,null,null,null,null,null,null,""]
[null,null,null,null,null,null,null,null,null,null,""]
[null,null,null,null,null,null,null,null,null,null,""]
[null,null,null,null,null,null,null,null,null,null,""]
[null,null,null,null,null,null,null,null,null,null,""]
[null,null,null,null,null,null,null,null,null,null,""]
[null,null,null,null,null,null,null,null,null,null,""]
[null,null,null,null,null,null,null,null,null,null,""]
[null,null,null,null,null,null,null,null,null,null,""]
[null,null,null,null,null,null,null,null,null,null,""]
[null,null,null,null,null,null,null,null,null,null,""]
[null,null,null,null,null,null,null,null,null,null,""]
[null,null,null,null,null,null,null,null,null,null,""]
[null,null,null,null,null,null,null,null,null,null,""]
[null,null,null,null,null,null,null,null,null,null,""]
[null,null,null,null,null,null,null,null,null,null,""]
[null,null,null,null,null,null,null,null,null,null,""]
[null,null,null,null,null,null,null,null,null,null,""]
[null,null,null,null,null,null,null,null,null,null,""]
[null,null,null,null,null,null,null,null,null,null,""]
[null,null,null,null,null,null,null,null,null,null,""]
[null,null,null,null,null,null,null,null,null,null,""]
[null,null,null,null,null,null,null,null,null,null,""]
[null,null,null,null,null,null,null,null,null,null,""]
[null,null,null,null,null,null,null,null,null,null,""]

{"sheet":"بياض","index":6,"n_rows":65,"n_cols":11,"rows_kept":65,"cut":false,"hidden":false,"merged":[]}
["مسلسل",{"$f":"SUM($B$2:$B$986)","v":100},"الصنف","الاسم","السعر",{"$f":"SUM($F$2:$F$986)","v":250},"تاريخ البيع",{"$f":"SUM($H$2:$H$986)","v":2},{"$f":"SUM($I$2:$I$986)","v":3},{"$f":"SUM($J$2:$J$986)","v":5},"التاريخ"]
[1,50,"بياض","وليد فوزى",null,0,"2018-10-25",{"$f":"B2/50","v":1},{"$f":"J2-H2","v":4},5,{"$f":"IF($J2=\"\",\"\",IF(K2=\"\",TODAY(),K2))","v":""}]
[1,50,"بياض","زبون",5,250,"2018-10-25",1,-1,null,""]
[null,null,null,null,null,null,null,0,0,null,""]
[null,null,null,null,null,null,null,0,0,null,""]
[null,null,null,null,null,null,null,0,0,null,""]
[null,null,null,null,null,null,null,0,0,null,""]
[null,null,null,null,null,null,null,0,0,null,""]
[null,null,null,null,null,null,null,0,0,null,""]
[null,null,null,null,null,null,null,0,0,null,""]
[null,null,null,null,null,null,null,0,0,null,""]
[null,null,null,null,null,null,null,0,0,null,""]
[null,null,null,null,null,null,null,0,0,null,""]
[null,null,null,null,null,null,null,0,0,null,""]
[null,null,null,null,null,null,null,0,null,null,""]
[null,null,null,null,null,null,null,0,null,null,""]
[null,null,null,null,null,null,null,0,null,null,""]
[null,null,null,null,null,null,null,0,null,null,""]
[null,null,null,null,null,null,null,0,null,null,""]
[null,null,null,null,null,null,null,0,null,null,""]
[null,null,null,null,null,null,null,0,null,null,""]
[null,null,null,null,null,null,null,0,null,null,""]
[null,null,null,null,null,null,null,0,null,null,""]
[null,null,null,null,null,null,null,0,null,null,""]
[null,null,null,null,null,null,null,0,null,null,""]
[null,null,null,null,null,null,null,0,null,null,""]
[null,null,null,null,null,null,null,0,null,null,""]
[null,null,null,null,null,null,null,0,null,null,""]
[null,null,null,null,null,null,null,0,null,null,""]
[null,null,null,null,null,null,null,0,null,null,""]
[null,null,null,null,null,null,null,0,null,null,""]
[null,null,null,null,null,null,null,0,null,null,""]
[null,null,null,null,null,null,null,0,null,null,""]
[null,null,null,null,null,null,null,null,null,null,{"$f":"IF($J34=\"\",\"\",IF(K34=\"\",TODAY(),K34))","v":""}]
[null,null,null,null,null,null,null,null,null,null,""]
[null,null,null,null,null,null,null,null,null,null,""]
[null,null,null,null,null,null,null,null,null,null,""]
[null,null,null,null,null,null,null,null,null,null,""]
[null,null,null,null,null,null,null,null,null,null,""]
[null,null,null,null,null,null,null,null,null,null,""]
[null,null,null,null,null,null,null,null,null,null,""]
[null,null,null,null,null,null,null,null,null,null,""]
[null,null,null,null,null,null,null,null,null,null,""]
[null,null,null,null,null,null,null,null,null,null,""]
[null,null,null,null,null,null,null,null,null,null,""]
[null,null,null,null,null,null,null,null,null,null,""]
[null,null,null,null,null,null,null,null,null,null,""]
[null,null,null,null,null,null,null,null,null,null,""]
[null,null,null,null,null,null,null,null,null,null,""]
[null,null,null,null,null,null,null,null,null,null,""]
[null,null,null,null,null,null,null,null,null,null,""]
[null,null,null,null,null,null,null,null,null,null,""]
[null,null,null,null,null,null,null,null,null,null,""]
[null,null,null,null,null,null,null,null,null,null,""]
[null,null,null,null,null,null,null,null,null,null,""]
[null,null,null,null,null,null,null,null,null,null,""]
[null,null,null,null,null,null,null,null,null,null,""]
[null,null,null,null,null,null,null,null,null,null,""]
[null,null,null,null,null,null,null,null,null,null,""]
[null,null,null,null,null,null,null,null,null,null,""]
[null,null,null,null,null,null,null,null,null,null,""]
[null,null,null,null,null,null,null,null,null,null,""]
[null,null,null,null,null,null,null,null,null,null,""]
[null,null,null,null,null,null,null,null,null,null,""]
[null,null,null,null,null,null,null,null,null,null,""]

{"sheet":"ردة","index":7,"n_rows":65,"n_cols":11,"rows_kept":65,"cut":false,"hidden":false,"merged":[]}
["مسلسل",{"$f":"SUM($B$2:$B$986)","v":0},"الصنف","الاسم","السعر",{"$f":"SUM($F$2:$F$986)","v":0},"تاريخ البيع",{"$f":"SUM($H$2:$H$986)","v":0},{"$f":"SUM($I$2:$I$986)","v":0},{"$f":"SUM($J$2:$J$986)","v":0},"التاريخ"]
[null,null,null,null,null,null,null,{"$f":"B2/40","v":0},{"$f":"J2-H2","v":0},0,{"$f":"IF($J2=\"\",\"\",IF(K2=\"\",TODAY(),K2))","v":""}]
[null,null,null,null,null,null,null,{"$f":"B3/40","v":0},0,null,""]
[null,null,null,null,null,null,null,0,0,null,""]
[null,null,null,null,null,null,null,0,0,null,""]
[null,null,null,null,null,null,null,0,0,null,""]
[null,null,null,null,null,null,null,0,0,null,""]
[null,null,null,null,null,null,null,0,0,null,""]
[null,null,null,null,null,null,null,0,0,null,""]
[null,null,null,null,null,null,null,0,0,null,""]
[null,null,null,null,null,null,null,0,0,null,""]
[null,null,null,null,null,null,null,0,0,null,""]
[null,null,null,null,null,null,null,0,0,null,""]
[null,null,null,null,null,null,null,0,0,null,""]
[null,null,null,null,null,null,null,0,null,null,""]
[null,null,null,null,null,null,null,0,null,null,""]
[null,null,null,null,null,null,null,0,null,null,""]
[null,null,null,null,null,null,null,0,null,null,""]
[null,null,null,null,null,null,null,0,null,null,""]
[null,null,null,null,null,null,null,0,null,null,""]
[null,null,null,null,null,null,null,0,null,null,""]
[null,null,null,null,null,null,null,0,null,null,""]
[null,null,null,null,null,null,null,0,null,null,""]
[null,null,null,null,null,null,null,0,null,null,""]
[null,null,null,null,null,null,null,0,null,null,""]
[null,null,null,null,null,null,null,0,null,null,""]
[null,null,null,null,null,null,null,0,null,null,""]
[null,null,null,null,null,null,null,0,null,null,""]
[null,null,null,null,null,null,null,0,null,null,""]
[null,null,null,null,null,null,null,0,null,null,""]
[null,null,null,null,null,null,null,0,null,null,""]
[null,null,null,null,null,null,null,0,null,null,""]
[null,null,null,null,null,null,null,0,null,null,""]
[null,null,null,null,null,null,null,null,null,null,{"$f":"IF($J34=\"\",\"\",IF(K34=\"\",TODAY(),K34))","v":""}]
[null,null,null,null,null,null,null,null,null,null,""]
[null,null,null,null,null,null,null,null,null,null,""]
[null,null,null,null,null,null,null,null,null,null,""]
[null,null,null,null,null,null,null,null,null,null,""]
[null,null,null,null,null,null,null,null,null,null,""]
[null,null,null,null,null,null,null,null,null,null,""]
[null,null,null,null,null,null,null,null,null,null,""]
[null,null,null,null,null,null,null,null,null,null,""]
[null,null,null,null,null,null,null,null,null,null,""]
[null,null,null,null,null,null,null,null,null,null,""]
[null,null,null,null,null,null,null,null,null,null,""]
[null,null,null,null,null,null,null,null,null,null,""]
[null,null,null,null,null,null,null,null,null,null,""]
[null,null,null,null,null,null,null,null,null,null,""]
[null,null,null,null,null,null,null,null,null,null,""]
[null,null,null,null,null,null,null,null,null,null,""]
[null,null,null,null,null,null,null,null,null,null,""]
[null,null,null,null,null,null,null,null,null,null,""]
[null,null,null,null,null,null,null,null,null,null,""]
[null,null,null,null,null,null,null,null,null,null,""]
[null,null,null,null,null,null,null,null,null,null,""]
[null,null,null,null,null,null,null,null,null,null,""]
[null,null,null,null,null,null,null,null,null,null,""]
[null,null,null,null,null,null,null,null,null,null,""]
[null,null,null,null,null,null,null,null,null,null,""]
[null,null,null,null,null,null,null,null,null,null,""]
[null,null,null,null,null,null,null,null,null,null,""]
[null,null,null,null,null,null,null,null,null,null,""]
[null,null,null,null,null,null,null,null,null,null,""]
[null,null,null,null,null,null,null,null,null,null,""]
[null,null,null,null,null,null,null,null,null,null,""]

{"sheet":"دشيشة","index":8,"n_rows":65,"n_cols":11,"rows_kept":65,"cut":false,"hidden":false,"merged":[]}
["مسلسل",{"$f":"SUM($B$2:$B$986)","v":0},"الصنف","الاسم","السعر",{"$f":"SUM($F$2:$F$986)","v":0},"تاريخ البيع",{"$f":"SUM($H$2:$H$986)","v":0},{"$f":"SUM($I$2:$I$986)","v":0.55000000000000004},{"$f":"SUM($J$2:$J$986)","v":0.55000000000000004},"التاريخ"]
[null,null,null,null,null,null,null,{"$f":"B2/50","v":0},{"$f":"J2-H2","v":0.55000000000000004},0.55000000000000004,{"$f":"IF($J2=\"\",\"\",IF(K2=\"\",TODAY(),K2))","v":""}]
[null,null,null,null,null,null,null,0,0,null,""]
[null,null,null,null,null,null,null,0,0,null,""]
[null,null,null,null,null,null,null,0,0,null,""]
[null,null,null,null,null,null,null,0,0,null,""]
[null,null,null,null,null,null,null,0,0,null,""]
[null,null,null,null,null,null,null,0,0,null,""]
[null,null,null,null,null,null,null,0,0,null,""]
[null,null,null,null,null,null,null,0,0,null,""]
[null,null,null,null,null,null,null,0,0,null,""]
[null,null,null,null,null,null,null,0,0,null,""]
[null,null,null,null,null,null,null,0,0,null,""]
[null,null,null,null,null,null,null,0,0,null,""]
[null,null,null,null,null,null,null,0,null,null,""]
[null,null,null,null,null,null,null,0,null,null,""]
[null,null,null,null,null,null,null,0,null,null,""]
[null,null,null,null,null,null,null,0,null,null,""]
[null,null,null,null,null,null,null,0,null,null,""]
[null,null,null,null,null,null,null,0,null,null,""]
[null,null,null,null,null,null,null,0,null,null,""]
[null,null,null,null,null,null,null,0,null,null,""]
[null,null,null,null,null,null,null,0,null,null,""]
[null,null,null,null,null,null,null,0,null,null,""]
[null,null,null,null,null,null,null,0,null,null,""]
[null,null,null,null,null,null,null,0,null,null,""]
[null,null,null,null,null,null,null,0,null,null,""]
[null,null,null,null,null,null,null,0,null,null,""]
[null,null,null,null,null,null,null,0,null,null,""]
[null,null,null,null,null,null,null,0,null,null,""]
[null,null,null,null,null,null,null,0,null,null,""]
[null,null,null,null,null,null,null,0,null,null,""]
[null,null,null,null,null,null,null,0,null,null,""]
[null,null,null,null,null,null,null,null,null,null,{"$f":"IF($J34=\"\",\"\",IF(K34=\"\",TODAY(),K34))","v":""}]
[null,null,null,null,null,null,null,null,null,null,""]
[null,null,null,null,null,null,null,null,null,null,""]
[null,null,null,null,null,null,null,null,null,null,""]
[null,null,null,null,null,null,null,null,null,null,""]
[null,null,null,null,null,null,null,null,null,null,""]
[null,null,null,null,null,null,null,null,null,null,""]
[null,null,null,null,null,null,null,null,null,null,""]
[null,null,null,null,null,null,null,null,null,null,""]
[null,null,null,null,null,null,null,null,null,null,""]
[null,null,null,null,null,null,null,null,null,null,""]
[null,null,null,null,null,null,null,null,null,null,""]
[null,null,null,null,null,null,null,null,null,null,""]
[null,null,null,null,null,null,null,null,null,null,""]
[null,null,null,null,null,null,null,null,null,null,""]
[null,null,null,null,null,null,null,null,null,null,""]
[null,null,null,null,null,null,null,null,null,null,""]
[null,null,null,null,null,null,null,null,null,null,""]
[null,null,null,null,null,null,null,null,null,null,""]
[null,null,null,null,null,null,null,null,null,null,""]
[null,null,null,null,null,null,null,null,null,null,""]
[null,null,null,null,null,null,null,null,null,null,""]
[null,null,null,null,null,null,null,null,null,null,""]
[null,null,null,null,null,null,null,null,null,null,""]
[null,null,null,null,null,null,null,null,null,null,""]
[null,null,null,null,null,null,null,null,null,null,""]
[null,null,null,null,null,null,null,null,null,null,""]
[null,null,null,null,null,null,null,null,null,null,""]
[null,null,null,null,null,null,null,null,null,null,""]
[null,null,null,null,null,null,null,null,null,null,""]
[null,null,null,null,null,null,null,null,null,null,""]
[null,null,null,null,null,null,null,null,null,null,""]

{"sheet":"Setting","index":9,"n_rows":21,"n_cols":5,"rows_kept":21,"cut":false,"hidden":true,"merged":[]}
["اسماء الأصناف","سعر الكيلو",null,null,"أسماء العملاء"]
["بلدى",2.5,null,null,"عميل رقم 1"]
["ساسو",3,null,null,"عميل رقم 2"]
["دقى",3.5,null,null,"عميل رقم 3"]
["فيومى",4,null,null,"عميل رقم 4"]
["دشيشة",4.5,null,null,"عميل رقم 5"]
["ردة",4.5,null,null,"عميل رقم 6"]
["علف بط",5,null,null,"عميل رقم 7"]
["بياض",5,null,null,"عميل رقم 8"]
["تسمين",6.5,null,null,"عميل رقم 9"]
["بادى نامى خشن",7,null,null,"عميل رقم 10"]
["بادى نامى ناعم",7,null,null,"عميل رقم 11"]
["نامى خشن",7,null,null,"عميل رقم 12"]
["بادى ناعم",7.5,null,null,"عميل رقم 13"]
["مولر",15,null,null,"عميل رقم 14"]
["موسكوفى",18,null,null,"عميل رقم 15"]
["رومى",30,null,null,"عميل رقم 16"]
[null,null,null,null,"عميل رقم 17"]
[null,null,null,null,"عميل رقم 18"]
[null,null,null,null,"عميل رقم 19"]
[null,null,null,null,"عميل رقم 20"]